bitfinex/quotes_SOLUSD_20230116
["timestamp","ask_amount","ask_price","bid_price","bid_amount"]
[1673837148532,31.68,23.688,23.67,12.13]
[1673837148744,3.65737,23.687,23.67,12.13]
[1673837148966,20.65737,23.687,23.67,12.13]
[1673837149190,20.0,23.686,23.67,12.13]
[1673837149380,20.65737,23.685,23.67,12.13]
[1673837149587,3.65737,23.684,23.67,12.13]
[1673837150753,3.65737,23.684,23.667,109.6708]
[1673837152228,3.65737,23.684,23.668,17.0]
[1673837152439,3.65737,23.684,23.667,109.6708]
[1673837154858,3.65737,23.684,23.67,12.13]
[1673837155049,20.0,23.689,23.67,12.13]
[1673837155702,20.0,23.697,23.67,12.13]
[1673837155897,52.32737,23.696,23.671,17.0]
[1673837156106,23.65737,23.695,23.671,17.0]
[1673837156434,52.32737,23.694,23.671,17.0]
[1673837156628,23.65737,23.693,23.671,17.0]
[1673837156963,20.65737,23.692,23.67,12.13]
[1673837157171,23.65737,23.691,23.67,12.13]
[1673837157484,20.65737,23.69,23.67,12.13]
[1673837157680,3.65737,23.689,23.667,109.6708]
[1673837157891,31.68,23.688,23.667,109.6708]
[1673837158123,23.65737,23.687,23.668,17.0]
[1673837158332,3.65737,23.686,23.668,17.0]
[1673837158642,3.65737,23.686,23.667,109.6708]
[1673837159246,23.65737,23.686,23.667,109.6708]
[1673837159459,17.0,23.685,23.667,109.6708]
[1673837159776,55.33737,23.684,23.667,109.6708]
[1673837159995,20.65737,23.683,23.667,109.6708]
[1673837160209,3.65737,23.682,23.667,109.6708]
[1673837160625,3.65737,23.682,23.668,17.0]
[1673837161350,3.65737,23.682,23.661,21.02]
[1673837161567,62.63778611,23.681,23.662,17.0]
[1673837161781,23.65737,23.68,23.661,17.0]
[1673837161988,3.65737,23.679,23.661,17.0]
[1673837162211,3.65737,23.679,23.66,82.1748]
[1673837163579,3.65737,23.679,23.661,17.0]
[1673837166410,3.65737,23.679,23.66,82.1748]
[1673837167258,32.50778611,23.678,23.65,12.09]
[1673837167574,40.65737,23.677,23.651,20.0]
[1673837167780,3.65737,23.676,23.652,21.1]
[1673837167994,37.03182278,23.676,23.651,20.0]
[1673837168184,12.13,23.67,23.652,21.1]
[1673837168398,72.35737,23.669,23.648,112.8898]
[1673837168724,3.65737,23.668,23.648,112.8898]
[1673837168921,31.7,23.667,23.648,112.8898]
[1673837169131,20.65737,23.666,23.648,112.8898]
[1673837169343,55.36737,23.665,23.648,112.8898]
[1673837169569,3.65737,23.664,23.648,112.8898]
[1673837169781,31.71,23.663,23.648,112.8898]
[1673837169970,20.0,23.662,23.648,112.8898]
[1673837170727,31.71,23.663,23.648,112.8898]
[1673837170914,3.65737,23.664,23.648,112.8898]
[1673837171253,31.71,23.663,23.64,12.16]
[1673837171569,3.65737,23.662,23.641,113.5728]
[1673837171771,31.71,23.661,23.641,113.5728]
[1673837171961,20.65737,23.66,23.641,113.5728]
[1673837172305,55.37737,23.659,23.641,113.5728]
[1673837172513,20.65737,23.658,23.641,113.5728]
[1673837172721,55.37737,23.657,23.641,113.5728]
[1673837172917,20.65737,23.656,23.631,21.29]
[1673837173123,55.37737,23.655,23.631,113.5728]
[1673837173344,12.13,23.65,23.631,113.5728]
[1673837173567,35.38737,23.649,23.631,113.5728]
[1673837173876,40.65737,23.648,23.631,113.5728]
[1673837174071,35.38737,23.647,23.631,113.5728]
[1673837174281,23.65737,23.646,23.621,69.5431]
[1673837174496,35.38737,23.645,23.622,117.6726]
[1673837174717,23.65737,23.644,23.622,117.6726]
[1673837175034,33.37445278,23.652,23.63,12.05]
[1673837175245,23.65737,23.651,23.63,12.05]
[1673837175434,3.65737,23.65,23.63,12.05]
[1673837175646,31.73,23.649,23.63,12.05]
[1673837175869,3.65737,23.65,23.63,12.05]
[1673837176085,35.38737,23.649,23.63,12.05]
[1673837176275,3.65737,23.649,23.63,12.05]
[1673837176696,3.65737,23.649,23.631,17.0]
[1673837177020,3.65737,23.648,23.631,17.0]
[1673837179113,3.65737,23.648,23.623,21.45]
[1673837179333,3.65737,23.648,23.622,117.6726]
[1673837179334,31.73,23.647,23.622,117.6726]
[1673837179544,40.65737,23.646,23.622,117.6726]
[1673837179873,52.38737,23.645,23.622,117.6726]
[1673837180085,23.65737,23.644,23.622,117.6726]
[1673837180287,3.65737,23.644,23.63,12.13]
[1673837180809,3.65737,23.644,23.631,17.0]
[1673837181225,3.65737,23.644,23.622,117.6726]
[1673837181430,3.65737,23.644,23.623,20.0]
[1673837182064,31.74,23.643,23.623,20.0]
[1673837182274,23.65737,23.642,23.622,117.6726]
[1673837182482,35.39737,23.641,23.623,17.0]
[1673837182711,23.65737,23.64,23.622,117.6726]
[1673837182926,3.65737,23.639,23.622,117.6726]
[1673837184486,3.65737,23.639,23.62,0.36865751]
[1673837184707,31.74,23.638,23.62,0.36865751]
[1673837185032,23.65737,23.637,23.62,0.36865751]
[1673837185243,52.40737,23.636,23.62,0.36865751]
[1673837185450,23.65737,23.635,23.62,0.36865751]
[1673837185651,3.65737,23.634,23.62,0.36865751]
[1673837185853,31.75,23.633,23.62,0.36865751]
[1673837186069,23.65737,23.632,23.62,0.36865751]
[1673837186377,3.65737,23.631,23.62,0.36865751]
[1673837186580,48.03,23.63,23.601,21.57]
[1673837186791,48.03,23.63,23.59,16.28]
[1673837186792,23.65737,23.629,23.596,118.8702]
[1673837187012,35.41737,23.628,23.6,16.28]
[1673837187230,23.65737,23.627,23.601,21.57]
[1673837187436,31.76,23.626,23.601,21.57]
[1673837187971,23.65737,23.627,23.602,17.0]
[1673837188188,3.65737,23.625,23.603,20.0]
[1673837188383,3.65737,23.625,23.6,33.222528]
[1673837188384,31.76,23.624,23.6,33.222528]
[1673837188704,23.65737,23.623,23.6,33.222528]
[1673837188892,52.41737,23.622,23.6,16.942528]
[1673837189105,23.65737,23.621,23.6,16.942528]
[1673837189312,52.42737,23.62,23.6,16.942528]
[1673837189542,23.65737,23.619,23.6,16.942528]
[1673837189740,52.42737,23.618,23.6,16.942528]
[1673837189952,3.65737,23.617,23.6,16.942528]
[1673837190175,31.77,23.616,23.6,16.942528]
[1673837190385,40.65737,23.615,23.6,16.942528]
[1673837190594,35.43737,23.614,23.6,16.942528]
[1673837190799,23.65737,23.613,23.6,16.942528]
[1673837191008,35.43737,23.612,23.6,16.942528]
[1673837191323,40.65737,23.611,23.6,16.942528]
[1673837191540,35.43737,23.61,23.6,16.942528]
[1673837191749,23.65737,23.609,23.6,16.942528]
[1673837191972,31.77,23.615,23.6,16.942528]
[1673837192185,16.28,23.63,23.6,33.202528]
[1673837192391,3.65737,23.628,23.6,33.202528]
[1673837192605,3.65737,23.628,23.61,16.26]
[1673837192918,16.28,23.65,23.601,140.5773]
[1673837192919,31.73,23.649,23.62,16.14]
[1673837193122,3.65737,23.648,23.621,118.7073]
[1673837193332,31.73,23.647,23.622,17.0]
[1673837193534,3.65737,23.646,23.622,17.0]
[1673837193743,31.73,23.645,23.622,17.0]
[1673837193968,3.65737,23.644,23.622,17.0]
[1673837194178,31.74,23.643,23.622,17.0]
[1673837194495,3.65737,23.642,23.622,17.0]
[1673837194822,31.74,23.641,23.622,17.0]
[1673837195004,3.65737,23.64,23.622,17.0]
[1673837195215,31.74,23.639,23.622,17.0]
[1673837195534,3.65737,23.638,23.622,17.0]
[1673837196480,20.0,23.648,23.622,17.0]
[1673837196481,31.73,23.647,23.622,17.0]
[1673837196682,23.65737,23.646,23.622,17.0]
[1673837196893,44.23145279,23.656,23.63,16.14]
[1673837197103,35.37737,23.655,23.631,17.0]
[1673837197330,35.37737,23.655,23.631,38.5]
[1673837197519,19.75219353,23.655,23.631,38.5]
[1673837197734,31.72,23.654,23.631,21.5]
[1673837197966,31.72,23.654,23.621,236.3623]
[1673837197967,16.28,23.65,23.624,21.36]
[1673837198159,35.38737,23.649,23.622,21.36]
[1673837198369,16.09482353,23.654,23.623,20.0]
[1673837198586,35.37737,23.653,23.63,16.28]
[1673837198795,16.09482353,23.649,23.63,16.28]
[1673837199328,16.09482353,23.649,23.64,16.28]
[1673837199329,3.41992353,23.649,23.64,16.28]
[1673837199518,31.7,23.669,23.641,17.0]
[1673837199730,3.65737,23.668,23.642,20.0]
[1673837199959,31.7,23.667,23.643,17.0]
[1673837200171,3.65737,23.666,23.644,20.0]
[1673837200363,31.71,23.665,23.645,17.0]
[1673837200572,3.65737,23.664,23.645,17.0]
[1673837200805,31.71,23.663,23.645,17.0]
[1673837200993,3.65737,23.662,23.645,17.0]
[1673837201206,31.71,23.661,23.645,17.0]
[1673837201537,35.36737,23.661,23.645,17.0]
[1673837201733,20.0,23.66,23.645,17.0]
[1673837201940,31.72,23.659,23.641,113.2685]
[1673837202150,23.65737,23.658,23.641,113.2685]
[1673837202376,35.37737,23.657,23.641,113.2685]
[1673837202564,20.0,23.656,23.641,113.2685]
[1673837202772,20.0,23.658,23.641,113.2685]
[1673837203211,20.0,23.668,23.641,113.2685]
[1673837203429,35.35737,23.667,23.641,113.2685]
[1673837203620,16.19,23.66,23.63,16.28]
[1673837203832,16.19,23.66,23.623,116.5632]
[1673837203833,16.28,23.65,23.623,116.5632]
[1673837204048,35.38737,23.649,23.623,116.5632]
[1673837204271,20.0,23.648,23.624,42.76196354]
[1673837204466,20.0,23.648,23.63,16.28]
[1673837204682,20.0,23.657,23.63,16.28]
[1673837204899,35.37737,23.656,23.63,16.28]
[1673837205217,23.65737,23.655,23.631,17.0]
[1673837205419,52.37737,23.654,23.631,17.0]
[1673837205612,23.65737,23.653,23.624,21.3]
[1673837205826,52.37737,23.652,23.623,116.5632]
[1673837206038,24.4,23.65,23.623,116.5632]
[1673837206375,72.38737,23.649,23.623,116.5632]
[1673837206581,3.65737,23.648,23.623,116.5632]
[1673837206900,31.73,23.647,23.623,116.5632]
[1673837207112,20.65737,23.646,23.623,116.5632]
[1673837207308,55.38737,23.645,23.623,116.5632]
[1673837207517,3.65737,23.644,23.623,116.5632]
[1673837207734,3.65737,23.644,23.61,24.22]
[1673837207735,31.74,23.643,23.61,24.22]
[1673837208056,40.65737,23.642,23.611,42.96196354]
[1673837208248,35.39737,23.641,23.612,20.0]
[1673837208462,23.65737,23.64,23.613,21.5]
[1673837208669,44.23145279,23.64,23.62,24.4]
[1673837208889,24.4,23.65,23.621,58.49]
[1673837209083,23.65737,23.649,23.63,24.33]
[1673837209297,23.65737,23.649,23.631,17.0]
[1673837209519,3.65737,23.648,23.631,17.0]
[1673837213205,3.65737,23.648,23.623,42.95196354]
[1673837213395,3.65737,23.648,23.622,109.1679]
[1673837213396,31.73,23.647,23.622,109.1679]
[1673837213600,40.65737,23.646,23.622,109.1679]
[1673837213935,35.38737,23.645,23.622,109.1679]
[1673837214126,40.65737,23.644,23.622,109.1679]
[1673837214339,24.4,23.64,23.622,109.1679]
[1673837214564,72.39737,23.639,23.61,24.4]
[1673837214775,3.65737,23.638,23.611,118.8057]
[1673837215092,31.74,23.637,23.611,118.8057]
[1673837215293,23.65737,23.636,23.611,118.8057]
[1673837215503,35.40737,23.635,23.611,118.8057]
[1673837215718,23.65737,23.634,23.611,118.8057]
[1673837215920,52.40737,23.633,23.611,118.8057]
[1673837216139,23.65737,23.632,23.611,118.8057]
[1673837216351,52.40737,23.631,23.611,118.8057]
[1673837216561,23.65737,23.63,23.611,118.8057]
[1673837216770,35.41737,23.629,23.611,118.8057]
[1673837217191,20.0,23.628,23.611,118.8057]
[1673837217835,3.65737,23.629,23.611,118.8057]
[1673837218037,35.41737,23.628,23.611,118.8057]
[1673837218245,23.65737,23.627,23.611,118.8057]
[1673837218461,3.65737,23.626,23.611,118.8057]
[1673837218891,3.65737,23.626,23.612,17.0]
[1673837219082,3.65737,23.626,23.611,118.8057]
[1673837220040,3.65737,23.626,23.601,43.08196354]
[1673837220261,31.76,23.625,23.602,118.4208]
[1673837220448,23.65737,23.624,23.602,118.4208]
[1673837220649,35.41737,23.623,23.602,118.4208]
[1673837220865,23.65737,23.622,23.602,118.4208]
[1673837221089,31.77,23.621,23.602,118.4208]
[1673837221297,20.0,23.62,23.602,118.4208]
[1673837221520,20.0,23.62,23.603,17.0]
[1673837222036,35.42737,23.619,23.597,16.946782]
[1673837222243,23.65737,23.618,23.597,16.946782]
[1673837222459,35.42737,23.617,23.597,16.946782]
[1673837222665,20.0,23.616,23.597,16.946782]
[1673837223291,20.0,23.629,23.597,16.946782]
[1673837223508,3.65737,23.628,23.597,16.946782]
[1673837223711,30.02522811,23.626,23.597,16.946782]
[1673837223918,55.41737,23.625,23.597,16.946782]
[1673837224126,24.4,23.62,23.597,16.946782]
[1673837224343,55.42737,23.619,23.597,16.946782]
[1673837224543,3.65737,23.618,23.597,16.946782]
[1673837224759,20.0,23.619,23.6,24.33]
[1673837224964,20.0,23.627,23.6,24.33]
[1673837225190,35.41737,23.626,23.601,20.0]
[1673837225383,35.41737,23.626,23.602,38.71]
[1673837225384,3.65737,23.625,23.602,38.71]
[1673837225595,31.76,23.624,23.603,20.0]
[1673837225822,3.65737,23.623,23.604,17.0]
[1673837226031,3.65737,23.623,23.604,135.2709]
[1673837226677,31.76,23.622,23.604,135.2709]
[1673837226892,23.65737,23.621,23.604,135.2709]
[1673837227093,35.42737,23.62,23.604,135.2709]
[1673837227298,23.65737,23.619,23.604,118.2709]
[1673837227622,35.42737,23.618,23.604,118.2709]
[1673837227830,23.65737,23.617,23.604,118.2709]
[1673837228150,35.42737,23.616,23.597,16.946782]
[1673837228359,3.65737,23.615,23.597,16.946782]
[1673837229498,3.65737,23.615,23.6,24.4]
[1673837229729,20.0,23.621,23.6,24.4]
[1673837229920,20.0,23.622,23.601,17.0]
[1673837230355,31.76,23.627,23.601,17.0]
[1673837230569,23.65737,23.626,23.601,17.0]
[1673837230781,35.41737,23.625,23.601,17.0]
[1673837230975,23.65737,23.624,23.601,17.0]
[1673837231176,35.41737,23.623,23.601,17.0]
[1673837231385,35.41737,23.623,23.597,16.946782]
[1673837231386,24.4,23.62,23.597,16.946782]
[1673837231596,24.4,23.62,23.596,114.7757]
[1673837231597,72.42737,23.619,23.596,114.7757]
[1673837231820,72.42737,23.619,23.59,24.4]
[1673837231821,3.65737,23.618,23.59,24.4]
[1673837232034,31.77,23.617,23.59,24.4]
[1673837232354,40.65737,23.616,23.59,24.4]
[1673837232547,35.42737,23.615,23.59,24.4]
[1673837232753,3.65737,23.614,23.59,24.4]
[1673837233173,3.65737,23.614,23.592,20.0]
[1673837233389,3.65737,23.614,23.593,21.69]
[1673837233607,3.65737,23.614,23.594,20.0]
[1673837234020,3.65737,23.614,23.595,17.0]
[1673837234228,3.65737,23.614,23.595,125.9228]
[1673837234766,3.65737,23.614,23.596,21.72]
[1673837234979,3.65737,23.614,23.597,17.0]
[1673837235295,3.65737,23.614,23.595,125.9228]
[1673837236860,3.65737,23.614,23.595,108.9228]
[1673837237081,31.78,23.613,23.591,94.629941]
[1673837237406,24.4,23.61,23.591,94.629941]
[1673837237600,35.43737,23.609,23.591,94.629941]
[1673837237812,23.65737,23.608,23.591,94.629941]
[1673837238029,31.79,23.607,23.591,94.629941]
[1673837238237,20.0,23.606,23.591,94.629941]
[1673837238451,35.44737,23.605,23.591,94.629941]
[1673837238658,3.65737,23.604,23.591,94.629941]
[1673837238862,31.79,23.603,23.591,94.629941]
[1673837239076,20.0,23.602,23.591,94.629941]
[1673837239304,31.79,23.601,23.591,94.629941]
[1673837239702,3.65737,23.604,23.591,94.629941]
[1673837240027,24.4,23.62,23.591,94.629941]
[1673837240237,35.42737,23.618,23.592,17.0]
[1673837240441,3.65737,23.617,23.592,17.0]
[1673837240652,31.77,23.616,23.592,17.0]
[1673837240863,35.42737,23.616,23.592,17.0]
[1673837241494,3.65737,23.616,23.6,24.33]
[1673837241812,24.6,23.64,23.601,37.0]
[1673837242015,35.40737,23.633,23.602,21.82]
[1673837242229,35.40737,23.633,23.603,37.0]
[1673837242437,35.40737,23.633,23.604,21.82]
[1673837242645,35.40737,23.633,23.61,24.4]
[1673837242851,35.40737,23.633,23.611,17.0]
[1673837243499,35.40737,23.633,23.612,110.1422]
[1673837243708,35.40737,23.633,23.613,17.0]
[1673837243918,3.65737,23.633,23.613,17.0]
[1673837244118,31.73,23.646,23.62,24.22]
[1673837244324,3.65737,23.645,23.621,17.0]
[1673837244538,31.74,23.644,23.621,17.0]
[1673837245275,3.65737,23.645,23.622,20.0]
[1673837245491,3.65737,23.645,23.623,17.0]
[1673837245701,31.72,23.659,23.624,20.0]
[1673837245924,3.65737,23.658,23.625,128.0592]
[1673837246122,31.72,23.657,23.625,128.0592]
[1673837246331,3.65737,23.656,23.625,128.0592]
[1673837246649,31.72,23.655,23.625,128.0592]
[1673837246850,23.65737,23.654,23.625,148.9792]
[1673837247067,24.4,23.65,23.625,127.5592]
[1673837247272,55.38737,23.649,23.625,127.5592]
[1673837247481,20.65737,23.648,23.611,21.43]
[1673837247691,55.38737,23.647,23.611,21.43]
[1673837247901,20.65737,23.646,23.611,21.43]
[1673837248112,55.38737,23.645,23.611,21.43]
[1673837248321,20.0,23.644,23.611,21.43]
[1673837248541,31.74,23.643,23.62,24.33]
[1673837248756,20.0,23.642,23.62,24.33]
[1673837249077,20.0,23.642,23.621,17.0]
[1673837249288,20.0,23.643,23.621,17.0]
[1673837250547,3.65737,23.645,23.622,21.47]
[1673837250758,135.1571,23.66,23.63,24.33]
[1673837250759,20.0,23.659,23.63,24.33]
[1673837250973,3.65737,23.658,23.631,17.0]
[1673837251398,31.72,23.657,23.631,17.0]
[1673837251601,3.65737,23.656,23.631,17.0]
[1673837251917,31.72,23.655,23.631,17.0]
[1673837252131,20.65737,23.654,23.631,17.0]
[1673837252316,35.37737,23.653,23.631,17.0]
[1673837252755,35.37737,23.653,23.632,20.0]
[1673837252963,31.72,23.655,23.633,17.0]
[1673837253366,31.72,23.659,23.634,20.0]
[1673837253705,3.65737,23.658,23.63,24.22]
[1673837253905,31.72,23.657,23.63,24.22]
[1673837254121,3.65737,23.656,23.626,21.39]
[1673837254430,24.4,23.65,23.625,110.8919]
[1673837254647,72.38737,23.649,23.625,110.8919]
[1673837254855,3.65737,23.648,23.625,110.8919]
[1673837255067,31.73,23.647,23.625,110.8919]
[1673837255292,40.65737,23.646,23.625,110.8919]
[1673837255479,35.38737,23.645,23.625,110.8919]
[1673837255690,40.65737,23.644,23.625,110.8919]
[1673837255900,35.39737,23.643,23.625,110.8919]
[1673837256110,20.0,23.642,23.625,110.8919]
[1673837256317,31.74,23.641,23.626,17.0]
[1673837256973,20.0,23.64,23.626,17.0]
[1673837257152,35.39737,23.639,23.62,24.33]
[1673837257367,20.0,23.638,23.62,24.33]
[1673837257790,31.74,23.637,23.62,24.33]
[1673837258004,20.0,23.636,23.62,24.33]
[1673837258222,20.0,23.638,23.62,24.33]
[1673837258630,20.0,23.648,23.62,24.33]
[1673837258846,31.73,23.647,23.622,136.0216]
[1673837259057,23.65737,23.646,23.622,136.0216]
[1673837259253,35.38737,23.645,23.622,136.0216]
[1673837259466,20.0,23.644,23.622,136.0216]
[1673837259681,31.74,23.643,23.622,136.0216]
[1673837259894,3.65737,23.642,23.622,136.0216]
[1673837260097,31.74,23.641,23.622,136.0216]
[1673837260301,20.0,23.64,23.622,136.0216]
[1673837260529,3.65737,23.642,23.623,20.0]
[1673837260741,3.65737,23.642,23.624,17.0]
[1673837260955,31.73,23.649,23.624,17.0]
[1673837261149,31.73,23.65,23.625,20.0]
[1673837261369,3.65737,23.65,23.626,17.0]
[1673837261581,31.73,23.649,23.626,17.0]
[1673837261793,3.65737,23.648,23.626,17.0]
[1673837262830,31.73,23.647,23.626,17.0]
[1673837263054,3.65737,23.646,23.626,17.0]
[1673837263285,31.73,23.645,23.626,17.0]
[1673837264423,31.73,23.645,23.622,119.0216]
[1673837264639,23.65737,23.644,23.622,119.0216]
[1673837264852,52.39737,23.643,23.622,119.0216]
[1673837265042,23.65737,23.642,23.622,119.0216]
[1673837265252,35.39737,23.641,23.622,119.0216]
[1673837265468,23.65737,23.64,23.622,119.0216]
[1673837265995,3.65737,23.639,23.622,119.0216]
[1673837266206,35.39737,23.639,23.622,119.0216]
[1673837266423,20.0,23.638,23.622,119.0216]
[1673837266633,23.65737,23.638,23.622,119.0216]
[1673837267078,31.74,23.637,23.622,119.0216]
[1673837267290,20.0,23.636,23.622,119.0216]
[1673837267709,3.65737,23.638,23.623,17.0]
[1673837267907,31.74,23.637,23.612,21.45]
[1673837268119,31.74,23.637,23.613,147.7776]
[1673837268120,23.65737,23.636,23.613,147.7776]
[1673837268329,35.40737,23.635,23.613,130.7776]
[1673837269284,20.0,23.636,23.613,130.7776]
[1673837269480,20.0,23.637,23.614,21.51]
[1673837269687,20.0,23.646,23.615,37.0]
[1673837269898,35.38737,23.645,23.616,21.49]
[1673837270119,23.65737,23.644,23.617,17.0]
[1673837270440,35.39737,23.643,23.617,17.0]
[1673837270750,23.65737,23.642,23.617,17.0]
[1673837270945,3.65737,23.642,23.62,24.33]
[1673837271152,31.72,23.653,23.63,24.33]
[1673837271368,35.37737,23.653,23.631,17.0]
[1673837271579,3.65737,23.652,23.631,17.0]
[1673837271807,31.73,23.651,23.631,17.0]
[1673837271995,3.65737,23.65,23.631,17.0]
[1673837272207,31.73,23.649,23.631,17.0]
[1673837272418,3.65737,23.648,23.631,17.0]
[1673837273386,31.73,23.647,23.631,17.0]
[1673837273793,20.0,23.646,23.631,17.0]
[1673837274418,3.65737,23.648,23.631,17.0]
[1673837274628,3.65737,23.648,23.63,24.33]
[1673837275581,31.73,23.647,23.63,24.33]
[1673837275904,20.0,23.646,23.631,17.0]
[1673837279373,3.65737,23.648,23.631,17.0]
[1673837282110,35.38737,23.648,23.631,17.0]
[1673837282320,20.0,23.647,23.631,17.0]
[1673837282511,35.38737,23.646,23.631,17.0]
[1673837282849,3.65737,23.645,23.631,17.0]
[1673837283155,3.65737,23.645,23.623,112.6765]
[1673837283368,88.27811945,23.644,23.621,114.0776]
[1673837283569,40.65737,23.643,23.611,134.4182]
[1673837283781,35.39737,23.642,23.611,134.4182]
[1673837283972,37.0,23.641,23.611,134.4182]
[1673837284184,35.39737,23.64,23.611,134.4182]
[1673837284394,40.65737,23.639,23.611,112.9982]
[1673837284624,35.39737,23.638,23.611,112.9982]
[1673837284813,40.65737,23.637,23.611,112.9982]
[1673837285029,35.40737,23.636,23.611,112.9982]
[1673837285355,3.65737,23.635,23.612,21.57]
[1673837285805,3.65737,23.635,23.613,17.0]
[1673837286614,3.65737,23.635,23.614,20.0]
[1673837286814,3.65737,23.635,23.615,17.0]
[1673837287451,31.75,23.634,23.615,17.0]
[1673837287873,35.40737,23.635,23.615,17.0]
[1673837288618,35.40737,23.635,23.614,20.0]
[1673837288806,35.40737,23.635,23.612,20.0]
[1673837289018,20.0,23.636,23.613,21.55]
[1673837289236,20.0,23.639,23.614,20.0]
[1673837289444,20.0,23.639,23.62,24.4]
[1673837289669,51.73,23.645,23.62,24.4]
[1673837289885,3.65737,23.644,23.621,255.11]
[1673837290090,31.74,23.643,23.621,255.11]
[1673837290284,23.65737,23.642,23.621,255.11]
[1673837290495,31.74,23.641,23.621,255.11]
[1673837290705,20.0,23.64,23.621,255.11]
[1673837292618,20.0,23.64,23.621,238.11]
[1673837292827,31.74,23.639,23.621,238.11]
[1673837293033,20.0,23.638,23.621,238.11]
[1673837293768,3.65737,23.64,23.621,238.11]
[1673837293975,3.65737,23.64,23.622,17.0]
[1673837294187,31.73,23.646,23.623,20.0]
[1673837294404,30.94533867,23.65,23.624,38.48]
[1673837294623,31.73,23.649,23.624,38.48]
[1673837294931,62.67533867,23.649,23.625,20.0]
[1673837295120,3.65737,23.648,23.626,17.0]
[1673837295331,31.73,23.647,23.626,17.0]
[1673837295541,35.38737,23.648,23.626,17.0]
[1673837296288,3.65737,23.648,23.626,17.0]
[1673837296493,3.65737,23.648,23.626,21.48]
[1673837296907,31.73,23.647,23.625,20.0]
[1673837297115,31.73,23.647,23.622,21.41]
[1673837297116,3.65737,23.646,23.623,20.0]
[1673837297344,3.65737,23.646,23.624,41.41]
[1673837297552,3.65737,23.646,23.625,20.0]
[1673837297759,3.65737,23.646,23.626,17.0]
[1673837298701,3.65737,23.646,23.627,20.0]
[1673837298914,3.65737,23.646,23.628,17.0]
[1673837300612,31.73,23.645,23.621,259.51]
[1673837300928,20.0,23.644,23.622,20.0]
[1673837301145,31.74,23.643,23.622,20.0]
[1673837301349,35.39737,23.643,23.622,20.0]
[1673837301748,20.0,23.642,23.622,20.0]
[1673837301961,31.74,23.641,23.622,20.0]
[1673837302171,20.0,23.64,23.622,20.0]
[1673837302603,20.0,23.64,23.621,238.11]
[1673837302604,20.0,23.639,23.621,238.11]
[1673837302827,51.74,23.638,23.621,238.11]
[1673837303870,51.74,23.638,23.622,17.0]
[1673837304798,51.74,23.638,23.622,37.0]
[1673837305124,20.0,23.638,23.622,37.0]
[1673837305662,31.74,23.637,23.622,37.0]
[1673837305856,20.0,23.636,23.622,37.0]
[1673837306060,20.0,23.638,23.622,37.0]